bitfinex-derivatives/quotes_BTCF0:USTF0_20251128
["timestamp","ask_amount","ask_price","bid_price","bid_amount"]
[1764348640408,0.02393,91384.0,91383.0,0.04981]
[1764348640608,0.04565,91384.0,91383.0,0.02824]
[1764348641115,0.04565,91384.0,91383.0,0.04981]
[1764348641310,0.002,91384.0,91383.0,0.04981]
[1764348642002,0.02393,91384.0,91383.0,0.04981]
[1764348644008,0.002,91384.0,91383.0,0.04981]
[1764348645224,0.04565,91384.0,91383.0,0.04981]
[1764348646114,0.43565,91384.0,91383.0,0.005]
[1764348646303,0.04365,91376.0,91375.0,0.00058172]
[1764348646510,0.04365,91376.0,91350.0,0.25346295]
[1764348646511,0.04365,91362.0,91361.0,0.0557544]
[1764348647209,0.02193,91362.0,91361.0,0.04481]
[1764348647607,0.02193,91362.0,91361.0,0.04581]
[1764348648416,0.02193,91362.0,91361.0,0.06338869]
[1764348648611,0.010944,91365.0,91362.0,0.0109443]
[1764348648807,0.010944,91365.0,91364.0,0.04481]
[1764348649116,0.054594,91365.0,91364.0,0.04481]
[1764348649614,0.0545943,91362.0,91361.0,0.05276309]
[1764348649809,0.4345943,91362.0,91361.0,0.01857869]
[1764348650008,0.45970208,91362.0,91361.0,0.01757869]
[1764348650216,0.0545953,91354.0,91353.0,0.00011468]
[1764348650413,0.04365,91354.0,91353.0,0.04492468]
[1764348651408,0.04365,91354.0,91353.0,0.02335468]
[1764348651610,0.04365,91360.0,91359.0,0.04481]
[1764348651805,0.0545953,91354.0,91353.0,0.00011468]
[1764348652013,0.46970501,91354.0,91353.0,0.00011468]
[1764348652208,0.0109472,91338.0,91328.0,0.0109483]
[1764348652519,0.00757,91350.0,91331.0,0.055758]
[1764348652520,0.02193,91332.0,91331.0,0.055758]
[1764348652813,0.00016417,91342.0,91330.0,0.01277]
[1764348652814,0.09472417,91342.0,91341.0,0.04481]
[1764348653118,0.16354681,91342.0,91341.0,0.04481]
[1764348654117,0.16354681,91342.0,91341.0,0.04581]
[1764348654314,0.13846526,91342.0,91341.0,0.04581]
[1764348654509,0.04390526,91342.0,91341.0,0.04581]
[1764348655116,0.02218526,91342.0,91341.0,0.04581]
[1764348655308,0.04390526,91342.0,91341.0,0.04581]
[1764348655509,0.04590526,91342.0,91341.0,0.001]
[1764348655914,0.04590526,91342.0,91341.0,0.02424]
[1764348656117,0.04590526,91342.0,91341.0,0.04561]
[1764348657721,0.00225526,91342.0,91341.0,0.04561]
[1764348658113,0.04891526,91342.0,91341.0,0.04561]
[1764348658313,0.04891526,91342.0,91341.0,0.02424]
[1764348658614,0.04891526,91342.0,91341.0,0.001]
[1764348658806,0.04891526,91342.0,91341.0,0.02401]
[1764348659007,0.04891526,91342.0,91341.0,0.04538]
[1764348659816,0.04891526,91342.0,91341.0,0.06312431]
[1764348660324,0.49891526,91342.0,91341.0,0.01874431]
[1764348660713,0.073906,91342.0,91341.0,0.01874431]
[1764348660913,0.04891526,91342.0,91341.0,0.01874431]
[1764348661114,0.07891526,91342.0,91341.0,0.01874431]
[1764348661618,0.04891526,91342.0,91341.0,0.01874431]
[1764348661820,0.48891526,91342.0,91341.0,0.01874431]
[1764348662118,0.48891526,91342.0,91326.0,0.00027375]
[1764348662119,0.04666,91327.0,91326.0,0.00027375]
[1764348662320,0.48769393,91327.0,91326.0,0.00027375]
[1764348662821,0.04674543,91327.0,91326.0,0.04465375]
[1764348663020,0.21974543,91327.0,91326.0,0.04465375]
[1764348663218,0.21974543,91327.0,91326.0,0.02328375]
[1764348663415,0.60974543,91327.0,91326.0,0.02328375]
[1764348663617,0.61174543,91327.0,91326.0,0.02328375]
[1764348663922,0.31174543,91327.0,91326.0,0.02328375]
[1764348664218,0.59174543,91327.0,91326.0,0.00027375]
[1764348664421,0.34174543,91327.0,91326.0,0.00027375]
[1764348664623,0.22174543,91327.0,91326.0,0.00027375]
[1764348665224,0.00208543,91327.0,91326.0,0.04665375]
[1764348666014,0.00208543,91327.0,91326.0,0.06446344]
[1764348666323,0.00208543,91327.0,91326.0,0.06346344]
[1764348666826,0.04653417,91342.0,91341.0,0.04438]
[1764348667411,0.02349417,91342.0,91341.0,0.04438]
[1764348667617,0.01311,91360.0,91341.0,0.04438]
[1764348667618,0.034274,91365.0,91364.0,0.04438]
[1764348667818,0.03433619,91365.0,91364.0,0.04438]
[1764348668018,0.0576051,91356.0,91355.0,0.02301]
[1764348668217,0.04666,91351.0,91350.0,0.02301]
[1764348668426,0.04666,91351.0,91350.0,0.04438]
[1764348668825,0.0576066,91344.0,91343.0,0.04438]
[1764348669020,0.04672219,91344.0,91343.0,0.04438]
[1764348669325,6.219e-05,91344.0,91343.0,0.04438]
[1764348669521,0.04672219,91344.0,91343.0,0.04438]
[1764348670227,0.00206219,91344.0,91343.0,0.0553266]
[1764348672124,6.219e-05,91344.0,91343.0,0.07297215]
[1764348672321,0.00306219,91344.0,91343.0,0.07297215]
[1764348672826,6.219e-05,91344.0,91343.0,0.07297215]
[1764348673026,0.00206219,91344.0,91343.0,0.07297215]
[1764348673820,6.219e-05,91344.0,91343.0,0.07297215]
[1764348674021,0.00206219,91344.0,91343.0,0.07297215]
[1764348676329,6.219e-05,91344.0,91343.0,0.07297215]
[1764348676520,0.00206219,91344.0,91343.0,0.07297215]
[1764348677123,6.219e-05,91344.0,91343.0,0.07297215]
[1764348677326,0.00206219,91344.0,91343.0,0.07297215]
[1764348677524,0.00016417,91360.0,91359.0,0.0554047]
[1764348677829,0.00016417,91360.0,91359.0,0.04446]
[1764348678928,0.04326417,91360.0,91359.0,0.04446]
[1764348679129,0.0540456,91351.0,91350.0,0.04446]
[1764348679326,0.0540456,91351.0,91350.0,0.05806]
[1764348679534,0.0109456,91351.0,91350.0,0.05806]
[1764348679733,0.0540456,91351.0,91350.0,0.05806]
[1764348680436,0.0540465,91344.0,91343.0,0.06210555]
[1764348680632,0.0431,91344.0,91343.0,0.06210555]
[1764348681725,0.0431,91344.0,91343.0,0.07305215]
[1764348682126,0.02142,91344.0,91343.0,0.07305215]
[1764348682728,0.001,91351.0,91350.0,0.05806]
[1764348683033,0.00016417,91360.0,91359.0,0.04446]
[1764348683226,0.05420877,91360.0,91359.0,0.04446]
[1764348685332,0.0540453,91354.0,91353.0,0.04446]
[1764348685529,0.0431,91354.0,91353.0,0.04446]
[1764348686139,0.0109452,91355.0,91354.0,0.04578]
[1764348687227,0.0129452,91355.0,91354.0,0.04678]
[1764348689433,0.00016417,91360.0,91359.0,0.0693747]
[1764348690741,0.00316417,91360.0,91359.0,0.0703747]
[1764348691034,0.01376,91390.0,91359.0,0.05943]
[1764348691236,0.01376,91390.0,91380.0,0.24820415]
[1764348691237,0.04536,91381.0,91380.0,0.24820415]
[1764348691541,0.0563021,91381.0,91380.0,0.04578]
[1764348693738,0.0593021,91381.0,91380.0,0.04678]
[1764348694544,0.0603021,91381.0,91380.0,0.04678]
[1764348695133,0.0563031,91372.0,91371.0,0.00016417]
[1764348695331,0.2663031,91372.0,91371.0,0.00016417]
[1764348695537,0.4563031,91372.0,91371.0,0.00016417]
[1764348695843,0.2163031,91372.0,91371.0,0.00016417]
[1764348696042,0.4163031,91372.0,91371.0,0.00016417]
[1764348697143,0.1963031,91372.0,91371.0,0.00016417]
[1764348698139,0.1973031,91372.0,91371.0,0.00316417]
[1764348698646,0.6502631,91372.0,91371.0,0.00316417]
[1764348699436,0.0563061,91347.0,91346.0,0.04578]
[1764348699644,0.0563067,91342.0,91341.0,0.02288]
[1764348700040,0.01372,91350.0,91332.0,0.0235979]
[1764348700041,0.04536,91336.0,91335.0,0.04578]
[1764348700238,0.04536,91336.0,91326.0,0.01122235]
[1764348700239,0.0563082,91330.0,91329.0,0.02288]
[1764348700843,0.0563085,91327.0,91326.0,0.00027375]
[1764348701141,0.4563085,91327.0,91326.0,0.00027375]
[1764348701441,0.4563085,91327.0,91326.0,0.01858841]
[1764348702435,0.04736,91327.0,91326.0,0.07136841]
[1764348702846,0.04736,91327.0,91326.0,0.07236841]
[1764348704141,0.002,91327.0,91326.0,0.07236841]
[1764348704336,0.01372,91370.0,91338.0,0.04578]
[1764348704546,0.04536,91357.0,91356.0,0.04578]
[1764348704743,0.46536,91357.0,91356.0,0.04578]
[1764348704937,0.04536,91351.0,91350.0,0.05843]
[1764348705142,0.04536,91351.0,91340.0,0.01265]
[1764348705143,0.43536,91351.0,91340.0,0.01265]
[1764348705449,0.0109458,91350.0,91340.0,0.01265]
[1764348705633,0.02254,91341.0,91340.0,0.26085415]
[1764348705836,0.00016417,91355.0,91341.0,0.0109468]
[1764348706042,0.75016417,91355.0,91345.0,0.20242415]
[1764348706347,0.04552417,91355.0,91354.0,0.04578]
[1764348707235,0.80552417,91355.0,91345.0,0.20242415]
[1764348707445,0.0109453,91354.0,91345.0,0.20242415]
[1764348707644,0.7409453,91354.0,91340.0,0.21507415]
[1764348708044,0.0109458,91350.0,91340.0,0.21907415]
[1764348708246,0.3809458,91350.0,91340.0,0.21907415]
[1764348708549,0.3809458,91350.0,91340.0,0.21507415]
[1764348708847,0.04536,91346.0,91345.0,0.04878]
[1764348709146,0.43536,91346.0,91345.0,0.04878]
[1764348709347,0.43536,91346.0,91345.0,0.04578]
[1764348711149,0.04536,91346.0,91345.0,0.04578]
[1764348711644,0.6673062,91346.0,91345.0,0.003]
[1764348712040,0.0109468,91341.0,91340.0,0.01781912]
[1764348712241,0.0563073,91337.0,91336.0,0.00016417]
[1764348712440,0.04536,91337.0,91336.0,0.02304417]
[1764348712642,0.04536,91337.0,91336.0,0.04594417]
[1764348713144,0.04636,91346.0,91345.0,0.04578]
[1764348715048,0.04536,91346.0,91345.0,0.04578]
[1764348715444,0.0563062,91346.0,91345.0,0.04578]
[1764348715843,0.0563062,91346.0,91345.0,0.04878]
[1764348716047,0.0573062,91346.0,91345.0,0.04878]
[1764348716255,0.0344862,91346.0,91345.0,0.04878]
[1764348717454,0.4664662,91346.0,91345.0,0.04878]
[1764348717754,0.3644862,91346.0,91345.0,0.04878]
[1764348718155,0.1444862,91346.0,91345.0,0.04878]
[1764348718457,0.4164662,91346.0,91345.0,0.04878]
[1764348720458,0.4164662,91346.0,91345.0,0.02588]
[1764348721259,0.4164662,91346.0,91345.0,0.04857]
[1764348722146,0.4164662,91346.0,91345.0,0.003]
[1764348723653,0.04552,91346.0,91345.0,0.0469]
[1764348723858,0.41552,91346.0,91345.0,0.0469]
[1764348726254,0.81552,91346.0,91345.0,0.003]
[1764348726758,0.49552,91346.0,91345.0,0.003]
[1764348729156,0.41552,91346.0,91345.0,0.003]
[1764348730152,0.4264662,91346.0,91345.0,0.003]
[1764348731060,0.8464662,91346.0,91345.0,0.003]
[1764348732661,0.8464662,91346.0,91336.0,0.01789154]
[1764348732662,0.0547273,91337.0,91336.0,0.01789154]
[1764348732968,0.0547273,91337.0,91336.0,0.03910154]
[1764348734163,0.0547273,91337.0,91336.0,0.01789154]
[1764348734467,0.8767273,91337.0,91336.0,0.02389154]
[1764348735459,0.2467273,91337.0,91336.0,0.02389154]
[1764348735660,0.5267273,91337.0,91336.0,0.02389154]
[1764348735865,0.8167273,91337.0,91336.0,0.02389154]
[1764348737663,0.8167273,91337.0,91336.0,0.00616417]
[1764348737871,0.0553985,91327.0,91326.0,0.00027375]
[1764348738162,1.0184385,91327.0,91326.0,0.00027375]
[1764348738671,1.0184385,91327.0,91326.0,0.04361958]
[1764348738672,0.9739885,91327.0,91326.0,0.04361958]
[1764348738869,0.00016417,91336.0,91335.0,0.04351]
[1764348739060,0.0109439,91366.0,91354.0,0.04351]
[1764348739260,0.04551,91362.0,91361.0,0.04351]
[1764348739568,0.44551,91362.0,91361.0,0.04351]
[1764348739868,0.59298998,91362.0,91361.0,0.04351]
[1764348740164,0.62298998,91362.0,91361.0,0.04351]
[1764348740559,1.01298998,91362.0,91361.0,0.04351]
[1764348740760,1.18602998,91362.0,91361.0,0.04351]
[1764348740969,0.98602998,91362.0,91361.0,0.04351]
[1764348741163,0.04551,91353.0,91352.0,0.05745417]
[1764348741472,0.59298998,91361.0,91360.0,0.02133]
[1764348741661,0.99298998,91361.0,91360.0,0.02133]
[1764348742664,0.99298998,91361.0,91360.0,0.04351]
[1764348743062,0.99398998,91361.0,91360.0,0.04351]
[1764348743774,1.00298998,91361.0,91360.0,0.04351]
[1764348744466,1.00298998,91361.0,91352.0,0.06192518]
[1764348744467,0.04551,91353.0,91352.0,0.06192518]
[1764348744972,0.59298998,91353.0,91352.0,0.06192518]
[1764348746869,0.04551,91353.0,91352.0,0.06192518]
[1764348747075,0.59298998,91353.0,91352.0,0.06192518]
[1764348747666,0.59598998,91353.0,91352.0,0.06192518]
[1764348748260,0.59298998,91353.0,91352.0,0.07287068]
[1764348748576,0.59598998,91353.0,91352.0,0.07287068]
[1764348748876,0.59598998,91353.0,91352.0,0.06192518]
[1764348751475,0.59598998,91353.0,91352.0,0.09504518]
[1764348752669,0.60693538,91353.0,91352.0,0.09504518]
[1764348752874,1.00693538,91353.0,91352.0,0.01841518]
[1764348753067,1.42693538,91353.0,91352.0,0.01841518]
[1764348754378,1.42393538,91353.0,91352.0,0.01841518]
[1764348754580,1.42893538,91353.0,91352.0,0.01841518]
[1764348755577,0.07442,91343.0,91342.0,0.05893123]
[1764348755781,0.0984474,91336.0,91335.0,0.05893123]
[1764348756081,0.07442,91333.0,91332.0,0.05893123]
[1764348756281,0.0853679,91332.0,91331.0,0.05893123]
[1764348756484,0.3853679,91332.0,91331.0,0.05893123]
[1764348756678,0.07442,91330.0,91329.0,0.0481782]
[1764348756876,0.62189998,91330.0,91329.0,0.0875782]
[1764348757677,0.54747998,91330.0,91329.0,0.0875782]
[1764348758581,0.58352998,91330.0,91329.0,0.0875782]
[1764348758781,0.62189998,91330.0,91329.0,0.0885782]
[1764348758985,0.62189998,91330.0,91329.0,0.0491782]
[1764348759285,0.62189998,91330.0,91329.0,0.0885782]
[1764348761386,0.010948,91332.0,91329.0,0.0885782]
[1764348761387,0.085367,91340.0,91337.0,0.0109472]
[1764348761684,0.085367,91340.0,91339.0,0.07663]
[1764348762076,0.63284698,91340.0,91339.0,0.07663]
[1764348762678,0.62189998,91340.0,91339.0,0.07663]
[1764348762879,0.62389998,91340.0,91339.0,0.07663]
[1764348763687,0.99389998,91340.0,91339.0,0.03723]
[1764348764182,0.74389998,91340.0,91339.0,0.03723]
[1764348765077,0.74389998,91340.0,91339.0,0.07663]
[1764348765678,0.62389998,91340.0,91339.0,0.07663]
[1764348766188,0.62389998,91340.0,91339.0,0.09463199]
[1764348766386,0.63484698,91340.0,91339.0,0.01800199]
[1764348766585,0.63484698,91340.0,91335.0,0.05893113]
[1764348766586,0.0109473,91339.0,91338.0,0.0109472]
[1764348766787,0.0984474,91336.0,91335.0,0.05893113]
[1764348767086,0.64592738,91336.0,91335.0,0.06987873]
[1764348767680,0.64592738,91336.0,91335.0,0.05893113]
[1764348767881,0.0853677,91334.0,91332.0,0.05893113]
[1764348768081,0.07442,91333.0,91332.0,0.05893113]
[1764348768283,0.07442,91331.0,91330.0,0.0109481]
[1764348768481,0.62189998,91331.0,91330.0,0.0481781]
[1764348769079,0.62189998,91331.0,91330.0,0.0109481]
[1764348770090,0.62389998,91331.0,91330.0,0.02885776]
[1764348771191,0.62389998,91331.0,91330.0,0.02985776]
[1764348771587,0.62389998,91331.0,91330.0,0.06708776]
[1764348771892,0.07642,91331.0,91330.0,0.06708776]
[1764348772095,0.62389998,91331.0,91330.0,0.10648776]
[1764348778292,0.62389998,91331.0,91330.0,0.06708776]
[1764348778492,0.62389998,91331.0,91330.0,0.10044776]
[1764348781096,0.58552998,91331.0,91330.0,0.10044776]
[1764348781299,0.61936998,91331.0,91330.0,0.10044776]
[1764348781602,1.42031798,91331.0,91330.0,0.01890966]
[1764348781899,0.0785585,91327.0,91326.0,0.00010958]
[1764348782104,1.39603848,91327.0,91326.0,0.00010958]
[1764348783193,0.61508998,91327.0,91326.0,0.07732818]
[1764348783392,0.61708998,91327.0,91326.0,0.07732818]
[1764348783600,0.61708998,91327.0,91326.0,0.09511788]
[1764348783991,0.61708998,91327.0,91326.0,0.09611788]
[1764348784187,0.61708998,91327.0,91326.0,0.52611788]
[1764348784387,0.58324998,91327.0,91326.0,0.60436858]
[1764348784594,0.06777417,91341.0,91340.0,0.077217]
[1764348784893,0.61525415,91341.0,91340.0,0.077217]
[1764348785499,0.00016417,91341.0,91340.0,0.43627]
[1764348785699,0.01828118,91341.0,91340.0,0.43627]
[1764348786294,0.02028118,91341.0,91340.0,0.43627]
[1764348787299,0.02028118,91341.0,91340.0,0.51498516]
[1764348788304,0.02028118,91341.0,91340.0,0.51598516]
[1764348788607,0.07631113,91407.0,91399.0,0.06627]
[1764348788901,0.02316,91424.0,91392.0,0.02293]
[1764348788902,0.0109374,91420.0,91405.0,0.06627]
[1764348789107,0.06761,91416.0,91415.0,0.03291]
[1764348789403,0.08589118,91407.0,91406.0,0.03307408]
[1764348789596,0.08589118,91407.0,91406.0,0.06643408]
[1764348789803,0.08589118,91407.0,91406.0,0.03307408]
[1764348790099,0.08589118,91407.0,91406.0,0.06643408]
[1764348790611,0.01828118,91407.0,91406.0,0.43737318]
[1764348790795,0.01828118,91407.0,91406.0,0.25737318]
[1764348791104,0.01828118,91407.0,91406.0,0.06643408]
[1764348791504,0.01828118,91407.0,91406.0,0.43643408]
[1764348792100,0.02028118,91407.0,91406.0,0.43943408]
[1764348792303,0.02028118,91407.0,91406.0,0.00316408]
[1764348792304,0.08789118,91407.0,91406.0,0.00316408]
[1764348792805,0.08589118,91407.0,91406.0,0.00016408]
[1764348793010,0.46789118,91407.0,91406.0,0.00316408]
[1764348793508,0.46589118,91407.0,91406.0,0.00016408]
[1764348793805,0.46689118,91407.0,91406.0,0.00216408]
[1764348794008,0.06761,91371.0,91370.0,0.0892]
[1764348794204,0.06761,91371.0,91370.0,0.1092]
[1764348794405,0.08589118,91371.0,91370.0,0.1092]
[1764348794707,0.05205118,91371.0,91370.0,0.1092]
[1764348794904,0.01828118,91371.0,91370.0,0.3892]
[1764348795704,0.01828118,91371.0,91370.0,0.3902]
[1764348796402,0.00016408,91380.0,91379.0,0.0772123]
[1764348796608,0.00296,91402.0,91392.0,0.0109407]
[1764348797207,0.0109397,91401.0,91389.0,0.0109411]
[1764348797818,0.03377,91392.0,91391.0,0.26852957]
[1764348798007,0.03377,91392.0,91391.0,0.06627]
[1764348799210,0.06761,91392.0,91391.0,0.06627]
[1764348799708,0.06761,91392.0,91388.0,0.02293]
[1764348799709,0.003,91402.0,91388.0,0.02293]
[1764348799905,0.4,91402.0,91388.0,0.02293]
[1764348800108,0.03677,91392.0,91391.0,0.0782109]
[1764348800305,0.07061,91392.0,91391.0,0.0782109]
[1764348802104,0.003,91392.0,91391.0,0.0782109]
[1764348802709,0.09973,91390.0,91389.0,0.09796]
[1764348803017,0.09973,91390.0,91389.0,0.1089011]
[1764348803911,0.140401,91390.0,91388.0,0.01760403]
[1764348804109,0.09973,91387.0,91386.0,0.00016408]
[1764348804516,0.09973,91387.0,91386.0,0.09812408]
[1764348804718,0.09973,91387.0,91386.0,0.04764408]
[1764348805115,0.09973,91387.0,91386.0,0.00016408]
[1764348805319,0.40973,91387.0,91386.0,0.00016408]
[1764348805705,0.09973,91371.0,91370.0,0.20225957]
[1764348805909,0.09973,91371.0,91368.0,0.0109435]
[1764348805910,0.09973,91369.0,91368.0,0.0109435]
[1764348806106,0.09973,91369.0,91368.0,0.1084835]
[1764348807416,0.10073,91369.0,91368.0,0.1104835]
[1764348808921,0.09973,91369.0,91368.0,0.1084835]
[1764348809114,0.10273,91369.0,91368.0,0.1094835]
[1764348810208,0.10273,91369.0,91368.0,0.12765268]
[1764348811806,0.10273,91369.0,91368.0,0.15599268]
[1764348812207,0.05465,91369.0,91368.0,0.15599268]
[1764348812820,0.10266,91369.0,91368.0,0.15599268]
[1764348815927,0.10166,91369.0,91368.0,0.15499268]
[1764348816530,0.09966,91369.0,91368.0,0.15499268]
[1764348816822,0.05365,91369.0,91368.0,0.15499268]
[1764348817220,0.05365,91369.0,91368.0,0.21380141]
[1764348817420,0.002,91369.0,91368.0,0.21380141]
[1764348818232,0.002,91369.0,91368.0,0.15499268]
[1764348820123,0.09782,91369.0,91368.0,0.06564918]
[1764348821227,0.09782,91369.0,91368.0,0.11570918]
[1764348823736,0.04981,91369.0,91368.0,0.14404918]
[1764348823927,0.002,91369.0,91368.0,0.14404918]
[1764348824332,0.002,91369.0,91368.0,0.57404918]
[1764348824837,0.002,91369.0,91368.0,0.14404918]
[1764348830243,0.002,91369.0,91368.0,0.22272947]
[1764348830632,0.04981,91369.0,91368.0,0.22272947]
[1764348831233,0.04981,91369.0,91368.0,0.14404918]
[1764348831634,0.002,91369.0,91368.0,0.14404918]
[1764348832535,0.1087635,91369.0,91368.0,0.14404918]
[1764348832733,0.1087635,91369.0,91368.0,0.11570918]
[1764348832940,0.1087635,91369.0,91368.0,0.14404918]
[1764348833239,0.002,91369.0,91368.0,0.14404918]
[1764348833744,0.002,91369.0,91368.0,0.22276371]
[1764348834135,0.002,91369.0,91368.0,0.14404918]
[1764348834635,0.00016417,91378.0,91377.0,0.1105925]
[1764348834834,0.0399089,91408.0,91388.0,0.31285017]
[1764348834835,0.0109411,91389.0,91388.0,0.31285017]
[1764348835035,0.0109411,91389.0,91388.0,0.1105906]
[1764348836732,0.0169411,91389.0,91388.0,0.1105906]
[1764348837147,0.0109411,91389.0,91388.0,0.1105906]
[1764348837442,0.1051211,91389.0,91388.0,0.10065]
[1764348837648,0.5551211,91389.0,91388.0,0.001]
[1764348837841,0.5561211,91389.0,91388.0,0.001]
[1764348838750,0.5551211,91389.0,91388.0,0.001]
[1764348840936,0.3051211,91389.0,91388.0,0.001]
[1764348841133,0.5251211,91389.0,91388.0,0.001]
[1764348842142,0.54790949,91389.0,91388.0,0.001]
[1764348842838,0.54790949,91389.0,91388.0,0.01894621]
[1764348843040,0.54790949,91389.0,91388.0,0.001]
[1764348844849,0.1018422,91380.0,91379.0,0.00016417]
[1764348845048,0.1018422,91380.0,91353.0,0.05903793]
[1764348845049,0.1018437,91367.0,91353.0,0.05903793]
[1764348845248,0.1018437,91367.0,91352.0,0.00013939]
[1764348845249,0.53465272,91367.0,91366.0,0.01853115]
[1764348845443,0.53465272,91367.0,91366.0,0.00027363]
[1764348846047,0.1018454,91353.0,91352.0,0.00013939]
[1764348846852,0.1018454,91353.0,91352.0,0.04552939]
[1764348848055,0.1018454,91353.0,91352.0,0.06428429]
[1764348848348,0.1048454,91353.0,91352.0,0.06428429]
[1764348848740,0.0939,91353.0,91352.0,0.10683429]
[1764348849250,0.003,91353.0,91352.0,0.10683429]
[1764348850047,0.0939,91353.0,91352.0,0.10683429]
[1764348850243,0.003,91353.0,91352.0,0.10683429]
[1764348852559,0.00016417,91376.0,91375.0,0.08794]
[1764348852855,0.09544377,91417.0,91368.0,0.02542]
[1764348852856,0.02961,91440.0,91395.0,0.01978]
[1764348853054,0.0909,91421.0,91420.0,0.04539]
[1764348853248,0.0909,91421.0,91420.0,0.11762]
[1764348853443,0.04925634,91421.0,91420.0,0.11762]
[1764348853644,0.0909,91405.0,91404.0,0.08794]
[1764348853952,0.0909,91396.0,91395.0,0.08810407]
[1764348854147,0.09362634,91396.0,91395.0,0.04555407]
[1764348854851,0.49362634,91396.0,91395.0,0.02254966]
[1764348855248,0.49362634,91396.0,91395.0,0.01854966]
[1764348855556,0.49462634,91396.0,91395.0,0.02054966]
[1764348856256,0.49362634,91396.0,91395.0,0.01854966]
[1764348856450,0.49662634,91396.0,91395.0,0.00116407]
[1764348856657,0.08293,91371.0,91370.0,0.11214]
[1764348857052,0.08565634,91371.0,91370.0,0.11214]
[1764348857950,0.04455634,91371.0,91370.0,0.11214]
[1764348858664,0.04555634,91371.0,91370.0,0.11414]
[1764348859055,0.04655634,91371.0,91370.0,0.11414]
[1764348859256,0.08765634,91371.0,91370.0,0.08446]
[1764348859564,0.08765634,91371.0,91370.0,0.10248226]
[1764348860963,0.08565634,91371.0,91370.0,0.10048226]
[1764348861259,0.08665634,91371.0,91370.0,0.10248226]
[1764348861661,0.08765634,91371.0,91370.0,0.10148226]
[1764348862457,0.08765634,91371.0,91370.0,0.12730226]
[1764348864162,0.04455634,91371.0,91370.0,0.12630226]
[1764348864354,0.00372634,91371.0,91370.0,0.12830226]
[1764348865258,0.04555634,91371.0,91370.0,0.12830226]
[1764348865765,0.04555634,91371.0,91370.0,0.12630226]
[1764348865766,0.04455634,91371.0,91370.0,0.12630226]
[1764348865962,0.04555634,91371.0,91370.0,0.12830226]
[1764348867464,0.08665634,91371.0,91370.0,0.10248226]
[1764348867663,0.08665634,91371.0,91370.0,0.02002226]
[1764348867869,0.49665634,91371.0,91370.0,0.02002226]
[1764348868365,0.49565634,91371.0,91370.0,0.01802226]
[1764348868565,0.49665634,91371.0,91370.0,0.002]
[1764348868960,0.0814,91362.0,91361.0,0.10044384]
[1764348869171,0.08412634,91362.0,91361.0,0.10044384]
[1764348869372,0.09507064,91362.0,91361.0,0.10044384]
[1764348871067,0.09507064,91362.0,91361.0,0.01852384]
[1764348871570,0.09707064,91362.0,91361.0,0.06030384]
[1764348871770,0.09707064,91362.0,91361.0,0.10144384]
[1764348872563,0.09507064,91362.0,91361.0,0.10044384]
[1764348872770,0.09707064,91362.0,91361.0,0.10144384]
[1764348873167,0.09507064,91362.0,91361.0,0.10044384]
[1764348873469,0.09807064,91362.0,91361.0,0.10144384]
[1764348873772,0.09807064,91362.0,91361.0,0.01952384]
[1764348874463,0.09807064,91362.0,91361.0,0.06030384]
[1764348874664,0.09507064,91362.0,91361.0,0.05930384]
[1764348874864,0.09807064,91362.0,91361.0,0.06030384]
[1764348875264,0.09807064,91362.0,91361.0,0.01952384]
[1764348875769,0.09807064,91362.0,91361.0,0.06030384]
[1764348876767,0.00572634,91362.0,91361.0,0.10144384]
[1764348876965,0.01667064,91362.0,91361.0,0.10144384]
[1764348877160,0.05601064,91362.0,91361.0,0.10144384]
[1764348877971,0.01767064,91362.0,91361.0,0.10244384]
[1764348878273,0.09907064,91362.0,91361.0,0.10044384]
[1764348878569,0.09807064,91362.0,91361.0,0.10144384]
[1764348879674,0.09707064,91362.0,91361.0,0.10144384]
[1764348881870,0.09507064,91362.0,91361.0,0.10044384]
[1764348882066,0.09707064,91362.0,91361.0,0.10144384]
[1764348882272,0.05848,91375.0,91374.0,0.08192]
[1764348882572,0.05848,91375.0,91368.0,0.02412]
[1764348882573,0.02441,91400.0,91379.0,0.0780023]
[1764348882966,0.02441,91392.0,91379.0,0.0780023]
[1764348883271,0.00289051,91380.0,91379.0,0.0780023]
[1764348884467,0.00289051,91380.0,91379.0,0.16687132]
[1764348884665,0.00289051,91380.0,91379.0,0.16787132]
[1764348885066,0.00289051,91380.0,91379.0,0.0790023]
[1764348885573,0.00389051,91380.0,91379.0,0.0830023]
[1764348886077,0.00389051,91380.0,91379.0,0.07206]
[1764348886078,0.08529051,91380.0,91379.0,0.07206]
[1764348886277,0.09623271,91380.0,91379.0,0.03853]
[1764348886577,0.09623271,91380.0,91379.0,0.004]
[1764348887674,0.09623271,91380.0,91379.0,0.02224935]
[1764348888280,0.09623271,91380.0,91379.0,0.004]
[1764348888577,0.0814,91371.0,91370.0,0.03353]
[1764348888778,0.0814,91371.0,91370.0,0.06706]
[1764348889079,0.08412634,91371.0,91370.0,0.06706]
[1764348890372,0.0109437,91367.0,91366.0,0.05890873]
[1764348890575,0.0814,91364.0,91363.0,0.05890873]
[1764348890773,0.08412634,91362.0,91361.0,0.01884216]
[1764348892081,0.08512634,91362.0,91361.0,0.02384216]
[1764348892277,0.08512634,91362.0,91361.0,0.09090216]
[1764348892483,0.08612634,91362.0,91361.0,0.08690216]
[1764348893886,0.04406634,91362.0,91361.0,0.08690216]
[1764348894276,0.04206634,91362.0,91361.0,0.08590216]
[1764348894480,0.08612634,91362.0,91361.0,0.08690216]
[1764348895778,0.08412634,91362.0,91361.0,0.08590216]
[1764348895979,0.08612634,91362.0,91361.0,0.08690216]
[1764348897989,0.08512634,91362.0,91361.0,0.08690216]
[1764348898181,0.04306634,91362.0,91361.0,0.08690216]
[1764348898381,0.04206634,91362.0,91361.0,0.08590216]
[1764348898577,0.00372634,91362.0,91361.0,0.08690216]
[1764348898887,0.04625634,91362.0,91361.0,0.08690216]
[1764348899193,0.08524634,91362.0,91361.0,0.05437216]
[1764348899392,0.08524634,91362.0,91361.0,0.02084216]
[1764348899989,0.08524634,91362.0,91361.0,0.08866216]
[1764348900492,0.08524634,91362.0,91361.0,0.02084216]
[1764348900688,0.08524634,91362.0,91361.0,0.05475216]
[1764348900878,0.08424634,91362.0,91361.0,0.05275216]
[1764348901081,0.08524634,91362.0,91361.0,0.05675216]
[1764348901483,0.08424634,91362.0,91361.0,0.05275216]
[1764348901793,0.08524634,91362.0,91361.0,0.02084216]
[1764348902286,0.50524634,91362.0,91361.0,0.02084216]
[1764348903882,0.50624634,91362.0,91361.0,0.02084216]
[1764348904084,0.50524634,91362.0,91361.0,0.01884216]
[1764348904289,0.50824634,91362.0,91361.0,0.01984216]